Cogmind - Beta 16 --- EXPLORER MODE // 2025.12.26 @ 11:26:13 Player: K.K.Y. Result: Destroyed by S-10 Pest with Light Assault Rifle Performance ------------- Evolutions (0) 0 Regions Visited (4) 800 Robots Destroyed (52) 260 Value Destroyed (1294) 1294 Prototype IDs (12) 240 Alien Tech Used (0) 0 Bonus (-159) -159 TOTAL SCORE: 2435 Bonus ------- Friendly Fire -159 Cogmind --------- Core Integrity 0/250 Matter 280/300 Energy 96/100 System Corruption 4% Temperature Cool (2) Movement Treading (240) Ox1 Location -9/Recycling Parts ------- > --- POWER (1) -------- (None) > --- PROPULSION (2) --- Light Treads Improved Treads > --- UTILITY (3) ------ High-capacity Storage Unit Seismic Detector > --- WEAPON (2) ------- Subdweller Laser Ripper > --- INVENTORY (20) --- Light Humpback Experimental Sensor Array Rainbow Chip Multitool SUBCON Basin (Full) Peak State ------------ > --- POWER ------------ Light Ion Engine > --- PROPULSION ------- Light Treads > --- UTILITY ---------- High-capacity Storage Unit Seismic Detector ECM Suite > --- WEAPON ----------- Subdweller Laser Ripper > --- INVENTORY -------- Light Humpback Experimental Sensor Array Rainbow Chip Multitool SUBCON Basin [Rating: 31] Favorites ----------- Power Ion Engine Engine Ion Engine Power Core Light Nuclear Core Propulsion Light Treads Treads Light Treads Utility Structural Scanner Device Structural Scanner Storage Medium Storage Unit Weapon Light Cannon Energy Gun Subdweller Laser Ballistic Gun Light Assault Rifle Ballistic Cannon Light Cannon Slashing Weapon Makeshift Axe Build | -11 -10 -10 -10 -9 ------- Run | Yrd Mat Min Sub Rec Slots Evolved 1 | . 1 . . . Power . | . . . . . Propulsion . | . . . . . Utility 1 | . 1 . . . Weapon . | . . . . . Parts Attached 28 | 7 4 1 12 4 Power 4 | 1 . . 3 . Engine 3 | 1 . . 2 . Core 1 | . . . 1 . Reactor . | . . . . . Propulsion 7 | 2 . . 1 4 Treads 7 | 2 . . 1 4 Leg . | . . . . . Wheel . | . . . . . Hover . | . . . . . Flight . | . . . . . Utility 6 | 2 2 . 2 . Device 4 | 2 1 . 1 . Storage 2 | . 1 . 1 . Processor . | . . . . . Hackware . | . . . . . Protection . | . . . . . Artifact . | . . . . . Weapon 11 | 2 2 1 6 . Energy Gun 4 | 1 . 1 2 . Energy Cannon . | . . . . . Ballistic Gun 3 | 1 . . 2 . Ballistic Cannon 2 | . 2 . . . Launcher . | . . . . . Special Weapon . | . . . . . Impact Weapon . | . . . . . Slashing Weapon 2 | . . . 2 . Piercing Weapon . | . . . . . Special Melee Weapon . | . . . . . Unidentified Prototypes . | . . . . . Parts Lost 12 | . . . 9 3 Power 4 | . . . 3 1 Propulsion 3 | . . . 2 1 Utility 3 | . . . 2 1 Weapon 2 | . . . 2 . Highest Loss Streak 2 | . . . 2 2 To Critical Strikes . | . . . . . Average Backups 7 | 3 5 8 8 4 Power . | . . . . . Propulsion . | . . . . . Utility 5 | 2 4 6 5 3 Weapon . | . 1 1 . . Tool/Special . | . . . . . Unused Backups 12 | 1 1 . 6 4 Power 1 | 1 . . . . Propulsion . | . . . . . Utility 9 | . 1 . 5 3 Weapon 1 | . . . 1 . Tool/Special 1 | . . . . 1 Average Slot Usage (%) 86 | . 96 100 82 72 Engine 5 | . 12 12 3 2 Core 2 | . . . 3 . Treads 16 | . 25 25 13 16 Device 24 | . 31 25 24 15 Storage 10 | . 2 12 12 12 Energy Gun 9 | . 4 3 11 12 Ballistic Gun 2 | . 4 . 2 . Ballistic Cannon 6 | . 15 20 1 . Slashing Weapon 6 | . . . 8 12 Peak Build Rating 31 | 7 8 14 31 31 Average Rating 16 | 5 7 10 19 30 On Entrance 12 | . 7 8 14 31 Avg Prop Armor Cover (%) . | . . . . . Naked Turns . | . . . . . Heaviest Build 53 | 11 23 25 53 53 Greatest Support 43 | 40 40 40 40 43 Greatest Overweight (x) 17 | 2 . . 2 17 Average Overweight (x) . | . . . . 1 Largest Inventory Capacity 20 | 5 10 10 20 20 Average Capacity 11 | 5 6 10 12 20 Most Carried 20 | 5 6 10 20 20 Average Carried 11 | 3 5 8 12 20 Final Capacity 20 | 5 10 10 20 20 Final Carried 20 | 4 6 10 20 20 Class Distribution -------------------- 100% | Hacker-Mutant Dominant Class ---------------- Hacker-Mutant | -10/Materials Hacker-Mutant | -10/Mines Hacker-Mutant | -10/Subcaves Hacker-Mutant | -9/Recycling Resources | -11 -10 -10 -10 -9 ----------- Run | Yrd Mat Min Sub Rec Matter Collected 979 | 180 385 154 238 22 Remotely . | . . . . . Salvage Created 1673 | 157 558 241 529 188 Parts 109 | 12 35 12 41 9 Haulers Intercepted 2 | . 2 . . . Recyclers Shooed 1 | 1 . . . . Parts Field Recycled . | . . . . . Retrieved Matter . | . . . . . Parts Self-Destructed . | . . . . . Prevented . | . . . . . Parts Restored . | . . . . . Kills | -11 -10 -10 -10 -9 ------- Run | Yrd Mat Min Sub Rec Combat Hostiles Destroyed 36 | . 10 7 16 3 Melee 5 | . . . 2 3 Guns 12 | . 6 . 6 . Cannons 19 | . 4 7 8 . Classes Destroyed 13 | 2 6 1 3 1 Worker 2 | . 1 . . 1 Tunneler 4 | 4 . . . . Hauler 2 | . 2 . . . Recycler 3 | 1 2 . . . Mechanic 1 | . 1 . . . Turret 2 | . . . 2 . Watcher 1 | . 1 . . . Swarmer 10 | . 4 2 4 . Grunt 10 | . 6 4 . . Brawler 1 | . . . . 1 Sentry 3 | . . 1 . 2 Artisan 2 | . . . 2 . Subdweller 12 | . . . 12 . Thug 1 | . . 1 . . Best Kill Streak 10 | 3 10 2 4 3 Combat Bots Only 4 | . 3 2 4 3 Max Kills in Single Turn 1 | 1 1 1 1 1 Gunslinging . | . . . . . Exploded . | . . . . . Melee 1 | . . . 1 1 Uniques/NPCs Destroyed . | . . . . . Combat | -11 -10 -10 -10 -9 -------- Run | Yrd Mat Min Sub Rec Hostile Shots Fired 239 | . 37 30 144 28 Missed 84 | . 14 11 52 7 Hits 155 | . 23 19 92 21 Melee 3 | . . . . 3 Projectile 152 | . 23 19 92 18 Critical Strikes 3 | . . . 1 2 Damage Taken 1363 | . 148 116 930 169 Core 251 | . 31 18 187 15 Absorbed by Shields . | . . . . . Ignored by Resistances 842 | . 97 80 556 109 Core Remaining (%) 100 | 100 . . . . Volleys Fired 193 | 8 47 19 119 . Largest 2 | 2 2 2 2 . Hottest 105 | 60 60 105 105 . Shots Fired 313 | 16 92 38 166 1 Gun 205 | 16 56 2 130 1 Cannon 108 | . 36 36 36 . Launcher . | . . . . . Special . | . . . . . Kinetic 156 | 8 65 36 47 . Thermal 157 | 8 27 2 119 1 Explosive . | . . . . . Electromagnetic . | . . . . . Robot Hit Streak 39 | 6 39 24 21 . Robot Miss Streak 4 | 1 4 2 2 . Penetration Max . | . . . . . Secondary Targets 1 | . . . 1 . Max Gunslinging Chain 1 | . . . 1 . Shots Hit Robots 234 | 10 72 29 108 15 Core Hits 81 | 6 27 11 32 5 Critical Kills . | . . . . . Critical Parts Destroyed . | . . . . . Critical Strikes 14 | . 2 1 9 2 Burn 9 | . . . 9 . Blast 3 | . 2 1 . . Sever 2 | . . . . 2 Melee Attacks 25 | . . . 10 15 Impact . | . . . . . Slashing 25 | . . . 10 15 Piercing . | . . . . . Sneak Attacks 1 | . . . . 1 Combat Hostiles . | . . . . . Follow-up Attacks . | . . . . . Damage Inflicted 4386 | 125 1046 485 2214 516 Guns 2146 | 125 530 41 1450 . Cannons 1416 | . 516 439 461 . Explosions . | . . . . . Melee 816 | . . . 303 513 Ramming 8 | . . 5 . 3 Kinetic 1777 | 57 781 439 500 . Thermal 1785 | 68 265 41 1411 . Explosive . | . . . . . Electromagnetic . | . . . . . Impact . | . . . . . Slashing 816 | . . . 303 513 Piercing . | . . . . . Highest Corruption 4 | . . . . 4 Average Corruption 3 | . . . . 3 Corruption Purged . | . . . . . Corruption Blocked . | . . . . . Effects 3 | . . . . 3 Heat Flow Errors 1 | . . . . 1 Energy Discharges 1 | . . . . 1 Misfires 1 | . . . . 1 Overload Shots . | . . . . . Overflow Damage 24 | . 8 12 . 4 Projectiles 20 | . 8 12 . . Explosions . | . . . . . Melee 4 | . . . . 4 Knockbacks 11 | . . 7 4 . Impact . | . . . . . Kinetic 11 | . . 7 4 . Secondary . | . . . . . Self-Inflicted Damage . | . . . . . Shots . | . . . . . Rammed 2 | . . 1 . 1 Targets Rammed 2 | . . 1 . 1 Kicked . | . . . . . Crushed . | . . . . . Highest Temperature 214 | . 42 90 111 214 Average Temperature 32 | . 22 28 34 90 Received Heat Transfer 576 | . 99 63 342 72 Siege Activations . | . . . . . Martial Activations . | . . . . . Shielding Activations . | . . . . . Robots Disrupted . | . . . . . Combat Hostiles . | . . . . . Robots Corrupted . | . . . . . Combat Hostiles . | . . . . . Parts Fried . | . . . . . Impact Corruptions . | . . . . . Robots Melted . | . . . . . Combat Hostiles . | . . . . . Parts Melted 5 | 1 . . 4 . Heat Transferred 3825 | 150 600 74 3001 . Parts Sabotaged . | . . . . . Parts Stolen . | . . . . . Parts Stripped . | . . . . . Power Chain Reactions . | . . . . . Alert | -11 -10 -10 -10 -9 ------- Run | Yrd Mat Min Sub Rec Maximum Alert Level . | . . . . . Low Security (%) 100 | 100 100 100 . 100 Level 1 . | . . . . . Level 2 . | . . . . . Level 3 . | . . . . . Level 4 . | . . . . . Level 5 . | . . . . . High Security . | . . . . . Max Security . | . . . . . Peak Influence 80 | 10 80 54 . 40 Initial 2 | . 2 . . . Average 10 | 1 15 6 . 12 Influence Increases 800 | 25 281 174 180 140 Destroy 0b10 Robot/C 520 | . 200 140 120 60 Destroy 0b10 Robot/NC 65 | 25 35 . . 5 Destroy Leader 76 | . 46 30 . . Disable Machine 4 | . . 4 . . Lose Combat Pursuer 135 | . . . 60 75 Influence Decreases 800 | 20 286 174 180 140 Entered New Map 3 | . 3 . . . Time Decay 757 | 20 283 174 160 120 Lost Part 40 | . . . 20 20 Squads Dispatched . | . . . . . Investigation . | . . . . . Extermination . | . . . . . Reinforcement . | . . . . . Assault . | . . . . . Garrison . | . . . . . Intercept . | . . . . . Searches Triggered . | . . . . . Construction Impeded . | . . . . . Haulers Reinforced . | . . . . . Active Scanning Responses . | . . . . . Cargo Convoy Interrupts . | . . . . . Stealth | -11 -10 -10 -10 -9 --------- Run | Yrd Mat Min Sub Rec Distress Signals 1 | . 1 . . . Communications Jammed . | . . . . . Distress Signals . | . . . . . Times Spotted 54 | . 14 8 20 12 Peak Tracking Total 6 | . 3 2 2 6 Tactical Retreats 9 | . 2 . 2 5 ECM-based Alert Blocks 2 | . 2 . . . Traps | -11 -10 -10 -10 -9 ------- Run | Yrd Mat Min Sub Rec Traps Triggered 3 | . 1 . 2 . Indirectly . | . . . . . Trap Hack Attempts . | . . . . . Triggered . | . . . . . Disarmed . | . . . . . Reprogrammed . | . . . . . Reused . | . . . . . Traps Extracted . | . . . . . Installed . | . . . . . Triggered . | . . . . . Machines | -11 -10 -10 -10 -9 ---------- Run | Yrd Mat Min Sub Rec Machines Disabled 3 | . . 1 2 . Max in Single Turn 1 | . . 1 1 . Machines Repaired . | . . . . . Machines Dismantled . | . . . . . Machines Sabotaged . | . . . . . Overloaded Fab Kills . | . . . . . Hacking | -11 -10 -10 -10 -9 --------- Run | Yrd Mat Min Sub Rec Machines Accessed 3 | . . . 3 . Terminals . | . . . . . Fabricators . | . . . . . Repair Stations . | . . . . . Recycling Units . | . . . . . Scanalyzers . | . . . . . Garrison Access . | . . . . . Total Hacks 4 | . . . 4 . Successful 4 | . . . 4 . Failed . | . . . . . Catastrophic . | . . . . . Database Lockouts . | . . . . . Manual . | . . . . . Terminals . | . . . . . Fabricators . | . . . . . Repair Stations . | . . . . . Recycling Units . | . . . . . Scanalyzers . | . . . . . Garrison Access . | . . . . . Terminal Hacks 4 | . . . 4 . Record 1 | . . . 1 . Open Door 1 | . . . 1 . Proto ID Catalog 1 | . . . 1 . Release Object 1 | . . . 1 . Fabricator Hacks . | . . . . . Repair Station Hacks . | . . . . . Recycling Unit Hacks . | . . . . . Scanalyzer . | . . . . . Garrison Access Hacks . | . . . . . Unauthorized Hacks . | . . . . . Terminals . | . . . . . Fabricators . | . . . . . Repair Stations . | . . . . . Recycling Units . | . . . . . Scanalyzers . | . . . . . Garrison Access . | . . . . . Data Cores Recovered . | . . . . . Used . | . . . . . Hacking Detections . | . . . . . Full Trace Events . | . . . . . Feedback Events . | . . . . . Feedback Blocked . | . . . . . Robot Schematics Acquired . | . . . . . Robots Built . | . . . . . Authchips . | . . . . . Time . | . . . . . Total Robot Build Rating . | . . . . . Part Schematics Acquired . | . . . . . Parts Built . | . . . . . Authchips . | . . . . . Time . | . . . . . Total Part Build Rating . | . . . . . Part Studies Acquired . | . . . . . Parts Repaired . | . . . . . Time . | . . . . . Parts Recycled . | . . . . . Recycled Matter . | . . . . . Retrieved Matter . | . . . . . Retrieved Components . | . . . . . Parts Scanalyzed . | . . . . . Part Schematics Acquired . | . . . . . Parts Damaged . | . . . . . Bothacking | -11 -10 -10 -10 -9 ------------ Run | Yrd Mat Min Sub Rec Used RIF Installer . | . . . . . Robots Hacked . | . . . . . Non-combat . | . . . . . Combat . | . . . . . Robot Hacks Applied . | . . . . . Relay Couplers Released . | . . . . . Fabnet Peak Effective % . | . . . . . Robots Rewired 3 | . . . . 3 Allies Hacked . | . . . . . Hacks Repelled . | . . . . . Allies | -11 -10 -10 -10 -9 -------- Run | Yrd Mat Min Sub Rec Total Allies 3 | . . . . 3 Largest Group 3 | . . . . 3 Highest-Rated Group 26 | . . . . 26 Highest-Rated Ally 10 | . . . . 10 Total Orders . | . . . . . Ally Attacks . | . . . . . Total Damage . | . . . . . Kills . | . . . . . Allies Corrupted . | . . . . . Allies Melted . | . . . . . Intel | -11 -10 -10 -10 -9 ------- Run | Yrd Mat Min Sub Rec Active Infowar (turns) 6669 | 83 802 978 4546 260 Sensors 3208 | . . . 3208 . Structural 4649 | . 583 978 3088 . Seismic 3461 | 83 802 978 1338 260 ECM 709 | 67 628 . 14 . Robot Analysis Total . | . . . . . Derelict Logs Recovered 2 | . . 1 1 . Drone Launches . | . . . . . Drone Recoveries . | . . . . . Exploration | -11 -10 -10 -10 -9 ------------- Run | Yrd Mat Min Sub Rec Turns Passed 6707 | 98 802 978 4569 260 Spaces Moved 2516 | 50 340 557 1499 70 Core 26 | 24 . . . 2 Treads 2490 | 26 340 557 1499 68 Legs . | . . . . . Wheels . | . . . . . Hover . | . . . . . Flight . | . . . . . Fastest Speed 50 | 50 160 160 160 240 Average Speed 207 | 115 160 160 235 271 Slowest Speed 900 | 160 160 160 320 900 Overloaded Moves . | . . . . . Propulsion Burnouts . | . . . . . Robots Hopped . | . . . . . Potential Cave-ins . | . . . . . Cave-ins Triggered . | . . . . . Exploration Rate (%) 51 | 5 65 96 77 13 Regions Visited 4 Branch Regions 3 Pre-discovered Areas 1 | . . . 1 . Known Exits Taken 4 | 1 1 1 1 . Unknown Exits Taken . | . . . . . Scrap Searched 3 | . . 1 2 . Spaces Dug 1 | . . . 1 . Terrain Destroyed 1 | . . . 1 . Melee 1 | . . . 1 . Projectile . | . . . . . AOE . | . . . . . Terrain Rammed . | . . . . . Walls Destroyed . | . . . . . Machines Disabled . | . . . . . Actions | -11 -10 -10 -10 -9 --------- Run | Yrd Mat Min Sub Rec Total 3671 | 73 507 605 2368 118 Wait 855 | . 109 24 706 16 Move 2512 | 49 339 556 1498 70 Hop . | . . . . . Pick Up 26 | 8 5 4 9 . Fast Attach 10 | 4 1 . 3 2 Attach 11 | 3 1 . 7 . Detach 1 | . . . 1 . Swap 9 | . 2 1 4 2 Drop 17 | 1 3 . 11 2 Fire 193 | 8 47 19 119 . Melee 25 | . . . 10 15 Ram . | . . . . . Kick . | . . . . . Crush 2 | . . 1 . 1 Escape Stasis . | . . . . . Rewire 10 | . . . . 10 Trap . | . . . . . Miscellaneous . | . . . . . Route ------- -11/Scrapyard -10/Materials (discovered 2 exits: *Mat / *Min) -10/Mines (discovered 3 exits: *Mat x2 / *Sub) -10/Subcaves (discovered 3 exits: *Mat x2 / *Rec) -9/Recycling History --------- Turn | Location | Event 7 | -11/Scrapyard | Identified exit to Materials 7 | -11/Scrapyard | Discovered exit to Materials (range 16) 99 | -11/Scrapyard | Entered Materials 99 | -10/Materials | Evolved 1 slot: Utility x1 309 | -10/Materials | Build established: Hacker-Mutant 661 | -10/Materials | Identified exit to Materials 661 | -10/Materials | Discovered exit to Materials (range 8) 886 | -10/Materials | Identified exit to Mines 886 | -10/Materials | Discovered exit to Mines (range 10) 901 | -10/Materials | Entered Mines 956 | -10/Mines | Discovered exit to Materials (range 10) 1316 | -10/Mines | Identified exit to Subcaves 1316 | -10/Mines | Discovered exit to Subcaves (range 6) 1439 | -10/Mines | Found a damaged Exp. Sensor Array with a note attached 1442 | -10/Mines | Found Prototype Device 1465 | -10/Mines | Learned Materials terminal intel 1519 | -10/Mines | Joined a pair of Derelicts in attacking an 0b10 outpost 1742 | -10/Mines | Discovered exit to Materials (range 8) 1879 | -10/Mines | Entered Subcaves 1880 | -10/Subcaves | Approached by a straggling Scientist 2365 | -10/Subcaves | Identified exit to Recycling 2365 | -10/Subcaves | Discovered exit to Recycling (range 16) 2700 | -10/Subcaves | Visited 4L-MR0's lab 2721 | -10/Subcaves | Found Prototype Processor 2727 | -10/Subcaves | Identified Rainbow Chip 3304 | -10/Subcaves | Core integrity fell below 50% 3335 | -10/Subcaves | Curiously followed by a Cobbler waking with a query about "LVR3C" 3443 | -10/Subcaves | Shifting Twisted Machinery released Sub. Machine Gun 3446 | -10/Subcaves | Shifting Twisted Machinery released Sub. Machine Gun 3488 | -10/Subcaves | A swath of the cavern ceiling suddenly collapsed 3565 | -10/Subcaves | Identified exit to Materials 3565 | -10/Subcaves | Discovered exit to Materials (range 6) 3691 | -10/Subcaves | Learned location of Zion (-7) 3691 | -10/Subcaves | Met a Zionite searching for "candidates" 3692 | -10/Subcaves | Discovered exit to Materials (range 5) 4107 | -10/Subcaves | Shifting Twisted Machinery released Sub. Laser 4142 | -10/Subcaves | Shifting Twisted Machinery released Mak. Kinetic Plating 4173 | -10/Subcaves | Learned Materials trap positions 4984 | -10/Subcaves | Shifting Twisted Machinery released Battle Rifle 4995 | -10/Subcaves | Shifting Twisted Machinery released Battle Rifle 5114 | -10/Subcaves | Core integrity fell below 20% 5143 | -10/Subcaves | Found SUBCON Basin 6448 | -10/Subcaves | Entered Recycling 6708 | -9/Recycling | Destroyed by S-10 Pest with Light Assault Rifle Last Messages --------------- 06575_ R-06 Scavenger collects Wheel. 06576_ Attempting to rewire T-07 Excavator. 06576_ T-07 Excavator rewired. 06577_ Attempting to rewire A-02 Transporter. 06577_ A-02 Transporter is broken beyond repair. 06588_ Attempting to rewire K-01 Serf. 06588_ K-01 Serf rewired. 06597_ R-06 Scavenger collects Wheel. 06599_ Attempting to rewire T-07 Excavator. 06601_ T-07 Excavator rewired. 06606_ Acquired 10 matter. 06623_ Slammed into I-25 Savior. 06645_ Dropped Lgt. Treads. 06648_ R-06 Scavenger collects Lgt. Treads. 06651_ Dropped Lgt. Treads. 06651_ R-06 Scavenger collects Lgt. Treads. 06673_ System corrupted: Heat flow error (+239). 06704_ I-25 Savior springs to life. 06705_ S-10 Pest springs to life. 06705_ P-60 Hacker springs to life. Map ----- +----------------------------------------------------+ | ?????????????????????????????????????????????????? | | ?????????????????????????????????????????????????? | | ?????????????????????????????????????????????????? | | ?????????????????????????????????????????????????? | | ?????????????????????????????????????????????????? | | ???????????????????????????##????????????????????? | | ???????????????????????##### ####????????????????? | | ???????????????????????# #????????????????? | | ???????????????????????# #????????????????? | | ???????????????????????# #?#####??????????? | | ???????????????????????# #?# ##########?? | | ???????????????????????# #?# # ! #?? | | ???????????????????????# #?# #% | ! #?? | | ???????????????????????# #?# %# ]#?? | | ???????????????????????# #?# # %! =#?? | | ???????????????????????# #?# % +% #?? | | ???????????????????????######+#####% #! ! #?? | | ????????????????????????# # #?? | | ????????????????????????# k # #?? | | ????????????????????????# # #?? | | ????????????????????????# tt###% ##############?? | | ??????????????########### #?# #??????????????? | | ??????????????#t i # #?#####??????????????? | | ??????????????# a u [ # #????????????????????? | | ??????????????# ]gaa #i #????????????????????? | | ??????????????# h /@ #????????????????????? | | ??????????????# !%as # #????????????????????? | | ??????????????#r !t %# #????????????????????? | | ??????????????# * k !# r#????????????????????? | | ??????????????# b # #????????????????????? | | ??????????????########### #????????????????????? | | ????????????????????????# #????????????????????? | | ????????????????????????# #????????????????????? | | ????????????????????????# #????????????????????? | | ????????????????????????# #????????????????????? | | ????????????????????????? r #????????????????????? | | ????????????????????????? s #????????????????????? | | ????????????????????????? r #????????????????????? | | ????????????????????????? #????????????????????? | | ????????????????????????? r ????????????????????? | | ?????????????????????????#+#?????????????????????? | | ?????????????????????????????????????????????????? | | ?????????????????????????????????????????????????? | | ?????????????????????????????????????????????????? | | ?????????????????????????????????????????????????? | | ?????????????????????????????????????????????????? | | ?????????????????????????????????????????????????? | | ?????????????????????????????????????????????????? | | ?????????????????????????????????????????????????? | | ?????????????????????????????????????????????????? | +----------------------------------------------------+ Best States ------------- Heat Dissipation 25 Energy Generation 14 Energy Capacity 250 Matter Stores 300 Matter Capacity 300 Sight Range 16 Robot Scan Range 14 Terrain Scan Density 10 ECM Strength 1 Resistance: KI 35 Resistance: TH 35 Resistance: EX 35 Resistance: EM 35 Resistance: I 35 Resistance: S 35 Resistance: P 35 Evasion (%) 50 Recoil Reduction 2 Offensive Hacking 20 Item Schematics ----------------- None Robot Schematics ------------------ None Fabricated ------------ Nothing Repaired ---------- Nothing Studied --------- None Alien Tech Used ----------------- None Achievements -------------- None Challenges ------------ None Game ------ Seed ImpulseChipMinigun Manual? 0 Play Time 00:21:22 Cumulative 229.8 hours Start 2025.12.26 @ 11:03:16 End 2025.12.26 @ 11:26:13 Sessions 1 Manual Loads 0 Difficulty Explorer Special Mode None Game No. 356 Rogue 0 Adventurer 0 Explorer 356 Win Type - Total 0 Types 0/0/0/0/0/0/0/0/0/0 Lore% 71 Gallery% 68 Achievement% 54 Wizard Run 0 Options --------- Layout 1 ASCII 0 Keyboard 0 Movement Mouse Keybinds 0 Fullscreen 1 Font 24/Smallcaps Map View 50x35 Zoom Use 0% Tactical HUD 1 Map Filters NONE Filters NONE Steam 1 RUN: 069843e4-c358-463c-bef8-9ed14536707f